bitfinex/quotes_ETHUSD_20220215
["timestamp","ask_amount","ask_price","bid_price","bid_amount"]
[1644909882076,0.82446,3031.6,3031.5,2.1435783]
[1644909882274,0.02629848,3031.7,3031.5,2.1435783]
[1644909882476,0.03178465,3031.7,3031.6,1.12446]
[1644909882874,0.03178465,3031.7,3031.6,2.12446]
[1644909883077,0.03178465,3031.7,3031.6,1.12446]
[1644909883276,0.02629848,3031.7,3031.6,2.12446]
[1644909889978,0.02629848,3031.7,3031.6,1.12446]
[1644909890578,0.02629848,3031.7,3031.6,2.12446]
[1644909890778,0.02629848,3031.7,3031.6,1.12446]
[1644909890978,0.02629848,3031.7,3031.6,2.12446]
[1644909892278,0.02629848,3031.7,3031.6,5.26831434]
[1644909892479,0.02629848,3031.7,3031.6,2.12446]
[1644909901746,0.02485407,3031.7,3031.6,2.12446]
[1644909904977,0.00389735,3031.8,3031.7,5.55]
[1644909905204,0.00938352,3031.8,3031.7,11.19954172]
[1644909905377,1.1659,3032.9,3032.0,1.64834]
[1644909905575,1.40035849,3032.8,3032.1,4.40024509]
[1644909906276,1.64837,3032.7,3032.3,0.8242]
[1644909906477,2.47257,3032.7,3032.3,0.8242]
[1644909906673,2.47257,3032.7,3032.3,4.2320629]
[1644909907077,2.47257,3032.7,3032.3,1.1242]
[1644909907275,0.8242,3032.6,3032.3,1.6187163]
[1644909907478,0.8242,3032.6,3032.4,0.82421]
[1644909907479,1.40043316,3032.5,3032.4,0.82421]
[1644909907677,1.40044236,3032.5,3032.4,0.82421]
[1644909908325,1.40046901,3032.5,3032.4,1.3187954]
[1644909908926,1.64844,3032.6,3032.4,1.3187954]
[1644909910934,1.40046274,3032.5,3032.4,1.3187954]
[1644909911230,1.64844,3032.6,3032.4,1.3187954]
[1644909912281,1.64844,3032.6,3032.4,1.3172095]
[1644909912282,0.8242,3032.6,3032.4,1.3172095]
[1644909915725,1.6549981,3032.7,3032.4,2.1117198]
[1644909915726,1.64837,3032.7,3032.4,2.1117198]
[1644909915928,1.64837,3032.7,3032.5,0.82419]
[1644909915929,1.6549981,3032.7,3032.5,0.82419]
[1644909916326,1.6549981,3032.7,3032.5,1.32419]
[1644909916526,1.40041867,3032.6,3032.5,1.32419]
[1644909916927,1.64837,3032.7,3032.5,1.12419]
[1644909917124,1.6549981,3032.7,3032.5,1.12419]
[1644909918130,1.64837,3032.7,3032.5,1.12419]
[1644909918328,1.64837,3032.7,3032.6,0.3]
[1644909919576,1.64837,3032.7,3032.5,1.3187433]
[1644909920878,1.65224786,3032.7,3032.5,1.3187433]
[1644909921477,1.65224786,3032.7,3032.6,0.04194003]
[1644909921879,3.05265505,3032.7,3032.6,0.04194003]
[1644909925324,1.65224786,3032.7,3032.6,0.04194003]
[1644909926977,1.65224786,3032.7,3032.5,1.3187687]
[1644909931330,1.65224786,3032.7,3032.6,0.04174184]
[1644909931527,3.05261773,3032.7,3032.6,0.04174184]
[1644909931728,1.65224786,3032.7,3032.6,0.04174184]
[1644909932830,0.00387786,3032.7,3032.5,1.82419]
[1644909933028,0.01049398,3032.8,3032.5,0.3]
[1644909933229,0.01049398,3032.8,3032.4,2.1132767]
[1644909933429,0.01049398,3032.8,3032.4,1.2890667]
[1644909933629,0.01049398,3032.8,3032.6,0.82417]
[1644909933831,0.00387786,3032.8,3032.6,1.12417]
[1644909934029,0.01049398,3032.8,3032.6,1.12417]
[1644909934577,0.01049398,3032.8,3032.7,0.82422]
[1644909934778,1.41083306,3032.8,3032.7,0.82422]
[1644909934978,1.40421694,3032.8,3032.7,0.82422]
[1644909941135,1.40421694,3032.8,3032.6,1.12417]
[1644909941338,0.86721691,3032.8,3032.6,1.12417]
[1644909941540,0.04290691,3032.8,3032.6,1.12417]
[1644909941738,0.04290691,3032.8,3032.6,1.6186972]
[1644909942177,0.03430343,3032.8,3032.6,1.12417]
[1644909944876,0.03430343,3032.8,3032.6,0.82417]
[1644909945934,0.85857343,3032.8,3032.6,0.82417]
[1644909946329,0.03430343,3032.8,3032.6,0.82417]
[1644909946529,0.04586598,3032.8,3032.6,0.82417]
[1644909946931,0.04586598,3032.8,3032.6,1.12417]
[1644909947134,0.04586598,3032.8,3032.6,2.30986]
[1644909947531,0.04586598,3032.8,3032.7,0.475]
[1644909947732,0.04198812,3032.8,3032.7,1.3811]
[1644909947932,0.04198812,3032.8,3032.7,2.3811]
[1644909949574,0.04198812,3032.8,3032.7,4.8656811]
[1644909950779,3.42392,3036.1,3033.9,1.46e-05]
[1644909950780,8.91051138,3034.1,3033.9,1.46e-05]
[1644909950975,2.51015616,3034.1,3033.9,0.8239846]
[1644909951174,1.40009974,3034.0,3033.8,0.94361506]
[1644909951377,2.52406744,3034.0,3033.8,0.94361506]
[1644909951577,1.40009974,3033.9,3033.8,0.94361506]
[1644909952277,1.39913716,3033.9,3033.8,1.76757506]
[1644909954925,1.39913716,3033.9,3033.8,0.94361506]
[1644909956128,1.39913716,3033.9,3033.8,1.39366506]
[1644909956728,1.42053785,3033.9,3033.8,1.39366506]
[1644909957376,1.42053785,3033.9,3033.7,0.82397]
[1644909957583,1.14543289,3033.9,3033.7,0.82397]
[1644909958278,3.30930195,3033.8,3033.5,0.45005]
[1644909958477,3.30930195,3033.8,3033.3,0.45005]
[1644909958478,3.99454107,3033.8,3033.3,0.45005]
[1644909959077,3.99454107,3033.8,3033.5,0.82408]
[1644909959284,3.99454107,3033.8,3033.3,2.09809]
[1644909959285,0.84157607,3033.7,3033.6,0.82415]
[1644909959478,0.83080742,3033.7,3033.3,0.45005]
[1644909960078,0.83080742,3033.7,3033.4,0.82409]
[1644909960285,0.8241913,3033.7,3033.4,0.82409]
[1644909960728,0.8241913,3033.7,3033.4,0.82406]
[1644909960729,0.83080742,3033.7,3033.4,0.82406]
[1644909961531,1.71941933,3033.7,3033.5,0.82405]
[1644909961732,1.72603545,3033.7,3033.5,0.82405]
[1644909962535,0.8241913,3033.7,3033.5,1.2741]
[1644909962833,0.03332883,3033.8,3033.6,0.82398]
[1644909963831,0.85068611,3033.8,3033.7,0.45005]
[1644909964883,0.85068611,3033.8,3033.7,1.27406]
[1644909966679,0.85896264,3033.8,3033.7,1.27406]
[1644909970136,0.03498924,3033.8,3033.7,1.27406]
[1644909971534,0.03498924,3033.8,3033.6,2.25275866]
[1644909971734,0.03498924,3033.8,3033.7,0.44543]
[1644909972185,1.43479355,3033.8,3033.7,1.26944]
[1644909973983,1.43479355,3033.8,3033.7,0.44543]
[1644909976630,1.39980431,3033.8,3033.7,0.44543]
[1644909976831,1.29980431,3033.8,3033.7,0.44543]
[1644909982181,4.41413082,3033.8,3033.7,0.44543]
[1644909982481,1.29980431,3033.8,3033.7,0.44543]
[1644909983531,4.41430071,3033.8,3033.7,0.44543]
[1644909983731,1.29980431,3033.8,3033.7,0.44543]
[1644909984733,1.29980431,3033.8,3033.7,1.26946]
[1644909990386,3.50385847,3034.2,3033.8,1.64788]
[1644909990590,0.00550816,3033.9,3033.8,1.64788]
[1644909990830,0.00550816,3033.9,3033.8,1.26937]
[1644909991433,0.62798313,3034.2,3033.8,1.26937]
[1644909991634,0.62798313,3034.2,3033.9,1.64788]
[1644909991831,0.00550816,3034.0,3033.9,0.82394]
[1644909992032,0.00550816,3034.0,3033.8,0.44543]
[1644909992232,0.00936663,3034.0,3033.8,0.44543]
[1644909992632,0.00385847,3034.0,3033.8,0.44543]
[1644909993034,0.00936663,3034.1,3033.9,0.824]
[1644909993231,0.83335963,3034.1,3033.9,0.824]
[1644909993834,0.82785147,3034.1,3033.9,0.824]
[1644909995085,0.82785147,3034.1,3033.8,3.07214546]
[1644909995685,0.82785147,3034.1,3033.9,0.824]
[1644909996288,0.00385847,3034.1,3033.9,0.824]
[1644909996490,0.00936587,3034.2,3033.9,0.824]
[1644909996987,1.39960935,3034.1,3033.9,0.824]
[1644909997185,1.40346782,3034.1,3034.0,0.82391]
[1644909997387,2.02373401,3034.1,3033.8,3.07214546]
[1644909997591,2.02373401,3034.1,3033.1,1.1354]
[1644909997592,6.47922522,3034.0,3033.1,1.1354]
[1644909997787,0.62412466,3033.8,3033.1,1.1354]
[1644909997987,0.00385847,3033.7,3033.3,1.64831]
[1644909998252,1.39960935,3033.6,3033.3,2.47242]
[1644909998443,1.39960935,3033.6,3033.4,0.8241]
[1644909998646,1.39960935,3033.5,3033.4,0.8241]
[1644909998844,1.39960935,3033.5,3033.3,2.47242]
[1644909999047,1.39960935,3033.4,3033.3,1.64831]
[1644909999244,1.39960935,3033.4,3033.3,3.29627]
[1644909999445,0.00550751,3033.6,3033.4,0.824]
[1644909999645,1.39978538,3033.5,3033.4,0.824]
[1644910000245,1.39978538,3033.6,3033.4,0.824]
[1644910000446,1.39978538,3033.6,3033.4,1.64805]
[1644910001044,2.22383158,3033.6,3033.5,0.82403]
[1644910001246,2.22383158,3033.6,3033.4,0.82405]
[1644910001447,1.39978538,3033.5,3033.4,0.82405]
[1644910001648,1.39978538,3033.5,3033.3,3.29641]
[1644910002086,1.39978538,3033.5,3033.4,0.82407]
[1644910002490,0.00550758,3033.6,3033.4,0.82407]
[1644910002688,1.39978538,3033.5,3033.4,0.82407]
[1644910004893,1.39978538,3033.5,3033.4,1.64809]
[1644910005093,1.39978538,3033.5,3033.4,0.82407]
[1644910007235,1.39978538,3033.5,3033.4,1.6481]
[1644910007434,1.39978538,3033.5,3033.3,4.94437]
[1644910008538,0.00550757,3033.6,3033.3,4.94437]
[1644910008736,1.39970029,3033.5,3033.3,4.94437]
[1644910008936,1.39970029,3033.5,3033.4,0.82399]
[1644910010785,1.39970029,3033.5,3033.4,1.64795]
[1644910011084,0.00550757,3033.6,3033.4,0.82399]
[1644910011292,0.02588544,3034.1,3033.5,8.65525549]
[1644910011487,1.39956339,3034.0,3033.6,0.8237]
[1644910011685,1.39956339,3034.0,3033.7,3.20726518]
[1644910011887,1.44783846,3034.8,3033.8,6.6]
[1644910012088,0.62412466,3034.8,3033.9,5.63142157]
[1644910012286,0.62412466,3034.8,3033.9,2.47104]
[1644910012487,0.62412466,3034.8,3034.0,0.82375]
[1644910012689,0.62412466,3034.8,3034.1,0.82376]
[1644910012888,0.62412466,3034.8,3034.2,0.82373]
[1644910013334,0.62412466,3034.9,3034.2,0.82373]
[1644910013935,0.823729,3034.8,3034.3,0.8238]
[1644910014140,0.823729,3034.8,3034.4,0.82381]
[1644910015037,0.823729,3034.8,3034.3,0.15480858]
[1644910015038,0.62412466,3034.7,3034.3,0.15480858]
[1644910015336,0.62412466,3034.7,3034.5,0.8238]
[1644910015337,3.12849756,3034.7,3034.5,0.8238]
[1644910015538,1.44800496,3034.7,3034.5,0.8238]
[1644910015738,0.3,3034.6,3034.5,0.8238]
[1644910015940,0.92412466,3034.6,3034.4,1.64773]
[1644910016539,0.62412466,3034.5,3034.4,1.64773]
[1644910016740,1.74799096,3034.6,3034.4,1.64773]
[1644910017587,3.17433211,3034.5,3034.4,1.64773]
[1644910017988,3.79845677,3034.5,3034.4,1.64773]
[1644910018390,1.13040259,3034.6,3034.4,1.64773]
[1644910018391,1.75452725,3034.6,3034.4,1.64773]
[1644910018888,0.62412466,3034.5,3034.4,1.64773]
[1644910019389,3.71461112,3034.5,3034.4,1.64773]
[1644910022237,1.13040259,3034.6,3034.4,1.64773]
[1644910022736,1.1238663,3034.6,3034.4,1.64773]
[1644910023140,0.8238663,3034.6,3034.4,1.64773]
[1644910023337,0.00653629,3034.7,3034.4,1.64773]
[1644910023937,0.62412466,3034.9,3034.4,1.64773]
[1644910024137,0.00653629,3034.7,3034.4,1.64773]
[1644910024338,0.00653629,3034.7,3034.5,0.82359]
[1644910024588,0.00653629,3034.7,3034.5,1.64729]
[1644910025192,0.62412466,3034.9,3034.5,1.64729]
[1644910025392,0.00653629,3034.8,3034.5,1.64729]
[1644910025992,0.63066095,3034.8,3034.6,1.6474]
[1644910026192,0.63066095,3034.8,3034.6,0.82371]
[1644910026493,0.62412466,3034.9,3034.7,0.82371]
[1644910026693,0.63066095,3034.9,3034.7,0.82371]
[1644910026893,0.63450013,3034.9,3034.7,0.82371]
[1644910027295,0.63450013,3034.9,3034.8,0.8237]
[1644910027493,0.62796384,3034.9,3034.8,0.8237]
[1644910027695,0.00653629,3035.0,3034.8,0.8237]
[1644910027892,0.00653629,3035.0,3034.9,0.82365]
[1644910027893,0.63450013,3035.0,3034.9,0.82365]
[1644910028093,0.63450013,3035.0,3034.8,0.82365]
[1644910028736,0.62796384,3035.0,3034.8,0.82365]
[1644910028936,0.62796384,3035.0,3034.9,0.82364]
[1644910030342,0.00383918,3035.0,3034.9,0.82364]
[1644910030538,0.62412466,3035.2,3034.9,0.82364]
[1644910030539,0.61583833,3035.2,3034.9,0.82364]
[1644910030739,1.6473312,3035.4,3034.9,1.64727]
[1644910030941,0.8236302,3035.2,3035.0,0.82364]
[1644910031139,0.8236302,3035.2,3034.9,0.82363]
[1644910031140,3.09797297,3035.1,3034.9,0.82363]
[1644910031342,0.8236302,3035.2,3034.9,0.82363]
[1644910031540,3.31553472,3035.3,3035.0,0.82363]
[1644910031739,3.39090909,3035.4,3035.0,1.64727]
[1644910031990,2.22290972,3035.3,3035.0,1.64727]
[1644910032190,2.22290972,3035.3,3035.1,0.82361]
[1644910032191,1.39928112,3035.2,3035.1,0.82361]
[1644910034192,1.39928112,3035.2,3035.0,2.47091]
[1644910034390,1.62451356,3035.8,3035.0,2.47091]
[1644910034391,1.00196982,3035.9,3035.2,4.4]
[1644910034592,1.00196982,3035.9,3035.3,0.82336]
[1644910034593,0.1647,3035.9,3035.3,0.82336]
[1644910034992,0.00650704,3035.7,3035.3,0.82336]
[1644910035192,0.00650704,3035.7,3035.4,0.475]
[1644910035391,0.00650704,3035.7,3035.4,1.2983]
[1644910035592,0.00650704,3035.7,3035.5,0.82331]
[1644910035837,0.00650704,3035.7,3035.5,2.12162]
[1644910036041,0.002,3036.3,3035.6,2.46952]
[1644910036242,0.002,3036.3,3035.6,2.9634228]
[1644910036441,0.002,3036.3,3035.9,1.05251996]
[1644910036638,0.002,3036.3,3035.9,1.52751996]
[1644910036837,0.002,3036.3,3035.9,2.35060996]
[1644910037041,3.5,3037.2,3036.0,6.42309]
[1644910037241,3.49267454,3037.2,3036.0,6.42309]
[1644910037540,1.0,3037.1,3036.0,6.42309]
[1644910037739,3.5,3037.0,3036.0,6.42309]
[1644910037943,3.5,3037.3,3036.0,6.42309]
[1644910038243,1.1647,3037.4,3036.0,7.24618]
[1644910038441,0.02945908,3037.5,3036.7,0.82308]
[1644910038639,0.02945908,3037.5,3036.5,1.64615]
[1644910038640,0.66853138,3036.6,3036.5,1.64615]
[1644910040092,0.66853138,3036.6,3036.5,3.29226]
[1644910042691,0.66853138,3036.6,3036.5,1.64611]
[1644910046548,0.72109151,3036.6,3036.5,1.64611]
[1644910046996,0.72109151,3036.6,3036.4,3.29237]
[1644910046997,4.51038903,3036.6,3036.4,3.29237]
[1644910047199,3.40853168,3036.5,3036.4,1.6462]
[1644910047994,1.84822609,3036.6,3036.4,1.6462]
[1644910048194,1.03140563,3036.6,3036.4,1.6462]
[1644910048596,4.19519873,3036.6,3036.4,1.6462]
[1644910048794,4.23806765,3036.5,3036.4,0.32808919]
[1644910048996,1.10925183,3035.9,3035.7,0.82349]
[1644910049197,5.97449918,3036.4,3035.3,1.64709]
[1644910049494,5.97449918,3036.4,3035.1,4.2345]
[1644910049495,0.00381998,3035.8,3035.1,4.2345]
[1644910049695,0.3,3035.8,3035.1,4.2345]
[1644910049894,3.8,3036.2,3035.5,1.64697]
[1644910049895,0.00381998,3035.7,3035.5,1.64697]
[1644910050296,0.00381998,3035.9,3035.6,0.82359]
[1644910050497,0.82730788,3035.9,3035.6,0.8235]
[1644910050754,0.30649414,3035.8,3035.6,0.8235]
[1644910051261,3.73656236,3035.8,3035.7,0.82349]
[1644910051753,3.73656236,3035.8,3035.4,1.647]
[1644910051754,0.8235711,3035.7,3035.4,1.647]
[1644910051955,3.3282967,3035.6,3035.4,1.647]
[1644910052156,3.6282967,3035.6,3035.4,1.647]
[1644910053861,4.60456806,3035.6,3035.4,1.647]
[1644910054058,4.60456806,3035.6,3035.3,1.6471]
[1644910054059,4.60456806,3035.6,3035.3,2.4707]
[1644910054060,3.63562064,3035.5,3035.3,2.4707]
[1644910054258,3.63944062,3035.5,3035.3,2.4707]
[1644910056293,3.63944062,3035.5,3034.6,0.25]
[1644910056294,1.775,3035.4,3034.6,0.25]
[1644910056497,1.775,3035.4,3034.4,0.8239]
[1644910056498,0.86712478,3034.7,3034.4,0.8239]
[1644910056691,0.475,3034.9,3034.4,0.8239]
[1644910056891,0.3,3034.7,3034.5,0.82391]
[1644910057093,0.3,3034.7,3034.3,1.65676166]
[1644910057393,0.3,3034.8,3034.3,1.65676166]
[1644910057590,0.8239076,3034.7,3034.3,1.64759]
[1644910057790,0.8239076,3034.7,3034.3,1.65676108]
[1644910057791,0.3,3034.6,3034.3,1.65676108]
[1644910058844,3.42199157,3034.6,3034.3,1.64759]
[1644910059046,3.42199157,3034.6,3034.3,1.65676105]
[1644910059244,3.42636281,3034.6,3034.3,1.65676105]
[1644910059945,3.42636281,3034.6,3034.3,1.64759]
[1644910059946,0.3,3034.6,3034.3,1.64759]
[1644910060147,0.3,3034.6,3034.3,1.65680096]
[1644910061145,0.3,3034.6,3034.3,1.64759]
[1644910061346,1.3,3034.6,3034.3,1.65680096]
[1644910061549,3.51993102,3034.5,3034.3,1.65680096]
[1644910061745,0.3,3034.4,3034.3,1.65680096]
[1644910062003,3.45779438,3034.4,3034.3,0.00921096]
[1644910062206,0.3,3034.4,3034.3,0.00921096]
[1644910062405,0.3,3034.4,3034.2,0.82379]
[1644910062605,0.3,3034.4,3034.2,0.83300114]
[1644910063607,0.3,3034.4,3034.2,0.82379]
[1644910066746,3.41725146,3034.4,3034.2,0.82379]
[1644910067243,0.3,3034.4,3034.2,0.82379]
[1644910067643,3.88944365,3034.9,3034.2,1.6476]
[1644910067843,1.0,3034.8,3034.5,0.82379]
[1644910068143,3.40616925,3034.7,3034.5,0.82379]
[1644910068545,0.3,3034.8,3034.5,0.82379]
[1644910068742,3.88989475,3034.9,3034.5,0.82379]
[1644910068743,4.18989475,3034.9,3034.5,0.82379]
[1644910068943,1.0,3034.8,3034.6,0.82379]
[1644910069243,3.42554998,3034.7,3034.6,2.47139]
[1644910069699,1.0,3034.7,3034.6,2.47139]
[1644910069899,5.9,3034.7,3034.3,1.60207964]
[1644910070103,3.5,3034.6,3034.3,0.00920858]
[1644910070300,0.475,3034.5,3034.3,0.00920858]
[1644910070501,0.775,3034.5,3034.3,0.00920858]
[1644910070702,0.775,3034.5,3033.9,0.82412]
[1644910070900,1.13565871,3034.1,3033.9,0.82412]
[1644910071302,1.43565871,3034.1,3033.9,0.82412]
[1644910072205,3.22487929,3034.0,3033.8,0.83325945]
[1644910072401,3.22487929,3034.0,3033.8,1.65728945]
[1644910073003,3.22487929,3034.0,3033.8,0.83323945]
[1644910073240,3.22487929,3034.0,3033.8,0.82403]
[1644910074646,3.22487929,3034.0,3033.8,1.6481]
[1644910075246,1.0,3033.9,3033.7,1.65742971]
[1644910075443,3.17951622,3033.8,3033.7,1.65742971]
[1644910075644,3.38701232,3033.8,3033.7,1.64822]
[1644910075846,0.3,3033.8,3033.7,1.64822]
[1644910076044,0.3,3033.8,3033.7,2.47232]
[1644910078100,3.41849689,3033.8,3033.7,2.47232]
[1644910078297,3.39376815,3033.8,3033.7,2.47232]
[1644910078496,0.3,3033.8,3033.7,2.47232]
[1644910079696,3.43426202,3033.8,3033.7,2.47232]
[1644910080496,0.3,3033.8,3033.7,2.47232]
[1644910080756,0.8239469,3034.1,3033.7,2.47232]
[1644910080955,3.5,3034.4,3033.9,0.82387]
[1644910081154,0.3,3034.4,3033.9,0.82387]
[1644910081353,1.0,3034.6,3033.9,0.82387]
[1644910081554,1.0,3034.6,3033.9,0.82393]
[1644910081756,2.4717801,3034.4,3033.2,3.199]
[1644910081953,2.4717801,3034.4,3034.0,0.00920911]
[1644910081954,0.3,3034.3,3034.0,0.00920911]
[1644910082355,3.37459923,3034.3,3034.0,0.00920911]
[1644910082754,4.49865923,3034.3,3033.8,0.82407]
[1644910082954,1.6481309,3034.2,3033.8,0.82407]
[1644910083155,3.79097938,3034.1,3034.0,0.00920911]
[1644910083754,0.3,3034.1,3034.0,0.00920911]
[1644910083954,0.3,3034.1,3033.5,1.6481]
[1644910084155,0.824035,3034.0,3033.5,1.6481]
[1644910084354,0.824035,3034.0,3033.9,0.00920935]
[1644910085304,4.06209572,3034.0,3033.8,1.64812]
[1644910085502,0.824035,3034.0,3033.8,1.65732959]
[1644910086502,0.824035,3034.0,3033.8,1.64812]
[1644910087203,0.824035,3034.0,3033.8,0.82408]
[1644910087807,3.38749633,3033.9,3033.7,0.82407]
[1644910088003,1.1239973,3033.9,3033.7,0.8332797]
[1644910088941,1.1239973,3033.9,3033.7,3.29608]
[1644910089143,1.1239973,3033.9,3033.7,2.47209]
[1644910089344,4.27632217,3033.9,3033.7,2.47209]
[1644910089543,3.08720495,3033.8,3033.7,2.47209]
[1644910090043,3.08720495,3033.8,3033.7,0.82407]
[1644910090843,1.1239973,3033.9,3033.7,0.82407]
[1644910091046,2.5989973,3033.9,3033.6,0.00921006]
[1644910091350,2.5989973,3033.9,3032.7,0.00511584]
[1644910091544,1.6484116,3033.7,3033.6,0.00920994]
[1644910091750,0.475,3033.7,3033.6,0.00920994]
[1644910091993,1.475,3033.7,3033.6,0.00920994]
[1644910092194,1.775,3033.7,3033.6,0.00920994]
[1644910092395,1.775,3033.7,3032.9,1.64845]
[1644910092396,0.775,3033.7,3032.9,1.64845]
[1644910092596,0.8242199,3033.6,3032.9,1.64845]
[1644910092795,2.5992199,3033.6,3033.5,0.0092103]
[1644910093504,2.57800335,3033.6,3033.5,0.0092103]
[1644910093694,1.12421,3033.5,3033.3,0.8242]
[1644910093895,2.41849358,3033.5,3033.4,0.00921055]
[1644910094095,1.59428788,3033.5,3033.4,0.00921055]
[1644910094296,1.77007788,3033.5,3033.4,0.00921055]
[1644910094497,0.29507788,3033.5,3033.4,0.00921055]
[1644910094695,0.80190912,3033.6,3033.4,0.00921055]
[1644910094897,0.80190912,3033.6,3033.3,1.64825]
[1644910095097,0.80190912,3033.6,3033.3,1.65746078]
[1644910096145,0.80190912,3033.6,3033.3,1.64825]
[1644910096345,0.80190912,3033.6,3033.3,2.48149079]
[1644910096551,0.80190912,3033.6,3033.3,0.00921079]
[1644910096553,3.96985572,3033.5,3033.3,0.00921079]
[1644910096747,1.475,3033.4,3033.3,0.00921079]
[1644910096947,6.73247215,3033.4,3033.3,0.00921079]
[1644910097145,5.33271146,3033.4,3033.3,0.00921079]
[1644910097347,0.475,3033.4,3032.5,0.00511584]
[1644910097545,0.475,3033.4,3033.2,0.00921103]
[1644910097546,1.6483725,3033.3,3033.2,0.00921103]
[1644910097755,0.475,3033.4,3033.2,0.00921103]
[1644910097947,0.3,3033.5,3033.2,0.00921103]
[1644910097948,0.3,3033.3,3033.2,0.00921103]
[1644910098145,0.3,3033.5,3033.2,0.00921103]
[1644910098349,0.3,3033.5,3033.1,0.82426]
[1644910098548,1.06612411,3033.7,3033.1,0.82426]
[1644910098746,1.06612411,3033.7,3033.2,0.00921103]
[1644910098747,1.39960836,3033.6,3033.2,0.00921103]
[1644910098946,1.39960836,3033.6,3033.2,0.83335103]
[1644910098947,0.8241247,3033.4,3033.2,0.83335103]
[1644910099146,0.3,3033.4,3033.2,0.83335103]
[1644910099592,1.6482494,3033.6,3033.2,0.82414]
[1644910099793,0.3,3033.5,3033.1,0.82426]
[1644910099997,0.3,3033.5,3033.1,1.65765115]
[1644910100795,1.1241506,3033.5,3033.1,1.64844]
[1644910100996,1.1241506,3033.5,3033.1,0.82426]
[1644910101194,1.1241506,3033.5,3033.1,0.83347115]
[1644910101799,1.1241506,3033.5,3033.2,0.82415]
[1644910102497,1.1241506,3033.5,3033.2,0.83336103]
[1644910102695,1.1241506,3033.5,3033.2,0.00921103]
[1644910102895,1.1241506,3033.5,3033.3,0.82415]
[1644910106047,5.80633998,3033.5,3033.2,0.00921091]
[1644910106245,0.3,3033.3,3033.2,0.00921091]
[1644910106444,3.17473798,3033.3,3033.2,0.00921091]
[1644910106645,1.775,3033.3,3033.2,0.00921091]
[1644910106845,0.775,3033.3,3032.6,0.00511584]
[1644910107124,0.775,3033.3,3033.1,0.00921127]
[1644910107324,1.5991257,3033.3,3033.1,0.00921127]
[1644910108123,1.5991257,3033.3,3033.0,1.64853]
[1644910108323,1.5991257,3033.3,3033.0,1.65774139]
[1644910108727,1.5991257,3033.3,3033.0,2.48188139]
[1644910109324,1.5991257,3033.3,3033.0,2.47267]
[1644910109525,1.5991257,3033.3,3033.0,2.48188151]
[1644910110026,1.5991257,3033.3,3033.0,1.65774151]
[1644910110426,1.5991257,3033.3,3033.0,1.64853]
[1644910110627,1.5991257,3033.3,3033.0,1.65774151]
[1644910111458,1.2991257,3033.3,3033.0,5.15774151]
[1644910111652,0.4896738,3034.0,3033.0,5.98291502]
[1644910111653,0.9646738,3034.0,3033.0,5.98291502]
[1644910111855,0.4896738,3034.0,3033.3,0.82389]
[1644910112254,1.1676,3034.3,3033.3,0.82389]
[1644910112452,1.3993835,3034.2,3033.3,0.82389]
[1644910112652,0.823899,3034.0,3033.3,0.82389]
[1644910112852,1.123899,3034.0,3033.5,0.82395]
[1644910113255,1.123899,3034.0,3033.5,1.64798]
[1644910113953,1.39947407,3033.9,3033.6,0.82404]
[1644910114254,2.123899,3034.0,3033.7,0.82409]
[1644910114498,1.123899,3034.0,3033.7,0.82409]
[1644910114700,2.123899,3034.0,3033.7,0.82409]
[1644910115098,1.123899,3034.0,3033.7,4.89835422]
[1644910115299,1.31350401,3034.9,3033.8,3.97764557]
[1644910115300,4.2816,3034.6,3033.8,3.97764557]
[1644910115503,1.39928043,3034.5,3033.9,0.82378]
[1644910115700,1.39928043,3034.5,3033.9,1.64757]
[1644910115900,1.39928043,3034.4,3033.9,1.64757]
[1644910116100,0.3,3034.5,3033.9,1.64757]
[1644910116304,1.04079058,3034.9,3034.0,3.1847446]
[1644910116502,0.3,3034.8,3034.0,3.1847446]
[1644910116700,1.34079058,3034.9,3034.0,4.8322846]
[1644910116903,0.8237905,3034.4,3034.1,0.82379]
[1644910117701,0.8237905,3034.4,3034.1,2.47135]
[1644910118101,2.4714766,3034.4,3034.1,2.47135]
[1644910118343,0.3,3034.3,3034.1,1.64758]
[1644910118546,0.3,3034.3,3034.1,0.82379]
[1644910118742,2.4714766,3034.4,3034.1,0.82379]
[1644910119744,0.3,3034.3,3034.1,0.82379]
[1644910121996,1.3,3034.3,3034.1,0.82379]
[1644910122201,0.3,3034.3,3034.1,0.82379]
[1644910123394,0.3,3034.3,3034.1,0.81442484]
[1644910128051,0.05587221,3034.3,3034.1,0.81442484]
[1644910128251,2.4714766,3034.4,3034.1,0.81442484]
[1644910129152,0.3,3034.3,3034.1,0.81442484]
[1644910133752,3.35434963,3034.4,3034.1,0.81442484]
[1644910133951,3.35434963,3034.4,3034.1,1.63837484]
[1644910134655,3.35434963,3034.4,3034.1,1.6482638]
[1644910134857,0.3,3034.3,3034.1,1.6482638]
[1644910135054,0.3,3034.3,3034.1,0.8243138]
[1644910135656,0.3,3034.3,3034.1,0.81442484]
[1644910137901,1.1238926,3034.3,3034.1,0.81442484]
[1644910139907,0.8238926,3034.3,3034.1,0.81442484]
[1644910144351,3.16551172,3034.2,3034.1,0.81442484]
[1644910144603,3.16551172,3034.2,3034.0,0.00924693]
[1644910144802,2.39948072,3034.1,3034.0,0.00924693]
[1644910145004,3.17448072,3034.1,3034.0,0.00924693]
[1644910145509,0.86803787,3033.8,3033.3,1.2207]
[1644910145701,0.86803787,3033.8,3033.5,0.82415]
[1644910145702,2.81633767,3033.8,3033.5,0.82415]
[1644910145902,2.81633767,3033.8,3033.5,1.64828]
[1644910146303,2.81633767,3033.8,3033.5,0.82413]
[1644910146501,2.7724497,3033.8,3033.5,0.82413]
[1644910146705,2.7724497,3033.8,3033.5,0.83336976]
[1644910147104,2.7724497,3033.8,3033.6,0.82412]
[1644910148649,2.7724497,3033.8,3033.5,0.83341964]
[1644910148852,4.7625,3033.7,3033.5,0.82418]
[1644910149050,3.32185796,3033.6,3033.5,0.82418]
[1644910149250,0.3,3033.8,3033.5,0.83341964]
[1644910149451,3.3993863,3034.0,3033.5,0.83341964]
[1644910149452,3.6993863,3034.0,3033.5,0.83341964]
[1644910149650,2.39957293,3033.9,3033.5,0.83341964]
[1644910149849,3.14029839,3033.8,3033.6,0.82401]
[1644910150050,4.35243687,3033.8,3033.6,0.82401]